[Event "44th Chess Olympiad Women 2022"]
[Site "Chennai"]
[Date "2022.08.09"]
[Round "11.36"]
[White "Chong, Kai Ni Agnes"]
[Black "Granados Ortiz, Maria Jose"]
[Result "1-0"]
[ECO "D13"]
[WhiteElo "1909"]
[BlackElo "1753"]
[Annotator "NA RC"]
[PlyCount "189"]
[EventDate "2022.07.29"]
[EventType "team-tourn"]
[EventCountry "IND"]
[SourceTitle "playchess.com"]
[Source "ChessBase"]
[SourceQuality "1"]
[WhiteTeam "Malaysia"]
[BlackTeam "Nicaragua"]
[WhiteTeamCountry "MAS"]
[BlackTeamCountry "NCA"]
[TimeControl "40/5400+30:1800+30"]

1. d4 {[%emt 0:00:03]} d5 {[%emt 0:00:06]} 2. Nf3 {[%emt 0:00:07]} Nf6 {[%emt 0:00:08]} 3. c4 {[%emt 0:00:05]} c6 {[%emt 0:00:26]} 4. cxd5 {[%emt 0:00:18]} cxd5 {[%emt 0:00:09]} 5. Nc3 {[%emt 0:00:08]} e6 {[%emt 0:00:18]} 6. Bf4 {[%emt 0:00:21]} Bd6 {[%emt 0:00:14]} 7. Bg3 {[%emt 0:00:46]} O-O {[%emt 0:00:11]} 8. e3 {[%emt 0:00:10]} a6 {[%emt 0:00:39]} 9. a4 {[%emt 0:02:13]} Qe7 {[%emt 0:01:25]} 10. Ne5 {[%emt 0:02:32]} Nbd7 {[%emt 0:01:47]} 11. Bd3 {[%emt 0:00:47]} Ne8 {[%emt 0:01:55]} 12. Qc2 {[%emt 0:08:51]} f5 {[%emt 0:00:41]} 13. f4 {[%emt 0:15:05]} Nef6 {[%emt 0:04:39]} 14. Bh4 {[%emt 0:00:51]} Qe8 {[%emt 0:01:08]} 15. O-O {[%emt 0:12:18]} Be7 {[%emt 0:05:21]} 16. Rf3 {[%emt 0:04:10]} Nxe5 {[%emt 0:01:06]} 17. fxe5 {[%emt 0:04:19]} Ne4 {[%emt 0:00:23]} 18. Bxe7 {[%emt 0:02:05]} Qxe7 {[%emt 0:00:08]} 19. Raf1 {[%emt 0:03:16]} Ng5 {[%emt 0:00:57]} 20. Rf4 {[%emt 0:01:52]} Bd7 {[%emt 0:00:20]} 21. Qe2 {[%emt 0:01:40]} Nf7 {[%emt 0:00:55]} 22. g4 {[%emt 0:02:41]} Qg5 {[%emt 0:06:37]} 23. Kh1 {[%emt 0:03:01]} Nh6 {[%emt 0:01:20]} 24. gxf5 {[%emt 0:02:50]} Nxf5 {[%emt 0:00:10]} 25. Rg1 {[%emt 0:07:37]} Qd8 {[%emt 0:02:20]} 26. Qh5 {[%emt 0:04:02]} Be8 {[%emt 0:01:27]} 27. Qg4 {[%emt 0:02:20]} g6 {[%emt 0:04:33]} 28. Bxf5 {[%emt 0:01:25]} exf5 {[%emt 0:00:35]} 29. Rxf5 {[%emt 0:00:57]} Bd7 {[%emt 0:00:22]} 30. e6 {[%emt 0:02:09]} Bc6 {[%emt 0:00:07]} 31. Rgf1 {[%emt 0:01:32]} Rxf5 {[%emt 0:01:41]} 32. Rxf5 {[%emt 0:00:05]} Qd6 {[%emt 0:00:45]} 33. Rf7 {[%emt 0:01:17]} Rf8 {[%emt 0:00:18]} 34. Qf3 {[%emt 0:01:57]} Be8 {[%emt 0:04:57]} 35. Rxf8+ {[%emt 0:04:07]} Qxf8 {[%emt 0:00:00]} 36. Kg2 {[%emt 0:00:28]} Bc6 {[%emt 0:00:00]} 37. Qg3 {[%emt 0:02:25]} Qf5 {[%emt 0:02:58]} 38. Qb8+ {[%emt 0:02:07]} Kg7 {[%emt 0:00:07]} 39. Qc7+ {[%emt 0:01:47]} Kh6 {[%emt 0:00:10]} 40. e7 {[%emt 0:02:14]} Qg5+ {[%emt 0:00:23]} 41. Kf2 {[%emt 0:30:37]} Qf5+ {[%emt 0:31:17]} 42. Qf4+ {[%emt 0:01:32]} Qxf4+ {[%emt 0:00:09]} 43. exf4 {[%emt 0:00:03]} Kg7 {[%emt 0:00:25]} 44. Nxd5 {[%emt 0:00:00]} Kf7 {[%emt 0:00:00]} 45. Nc3 {[%emt 0:00:00]} Kxe7 {[%emt 0:00:00]} 46. d5 {[%emt 0:00:00]} Bd7 {[%emt 0:00:00]} 47. Ke3 {[%emt 0:00:00]} Kd6 {[%emt 0:00:00]} 48. Kd4 {[%emt 0:00:00]} b6 {[%emt 0:00:00]} 49. b4 {[%emt 0:00:00]} a5 {[%emt 0:00:00]} 50. b5 {[%emt 0:00:00]} Bf5 {[%emt 0:00:00]} 51. Ne4+ {[%emt 0:00:00]} Ke7 {[%emt 0:00:00]} 52. Ke5 {[%emt 0:00:00]} h5 {[%emt 0:00:00]} 53. d6+ {[%emt 0:00:00]} Kd8 {[%emt 0:00:00]} 54. Nc3 {[%emt 0:00:00]} Bc2 {[%emt 0:00:00]} 55. Ke6 {[%emt 0:00:00]} Bf5+ {[%emt 0:00:00]} 56. Ke5 {[%emt 0:00:00]} Bc2 {[%emt 0:00:00]} 57. d7 {[%emt 0:00:00]} Kxd7 {[%emt 0:00:00]} 58. Nd5 {[%emt 0:00:00]} Bb3 {[%emt 0:00:00]} 59. Nxb6+ {[%emt 0:00:00]} Kc7 {[%emt 0:00:00]} 60. Nd5+ {[%emt 0:00:00]} Kb7 {[%emt 0:00:00]} 61. Nc3 {[%emt 0:00:00]} Bc2 {[%emt 0:00:00]} 62. Kd6 {[%emt 0:00:00]} Kb6 {[%emt 0:00:00]} 63. Kd5 {[%emt 0:00:00]} Bb3+ {[%emt 0:00:00]} 64. Kd4 {[%emt 0:00:00]} Bc2 {[%emt 0:00:00]} 65. Kc4 {[%emt 0:00:00]} Kb7 {[%emt 0:00:00]} 66. Kc5 {[%emt 0:00:00]} Bf5 {[%emt 0:00:00]} 67. Nd5 {[%emt 0:01:55]} Bc2 {[%emt 0:00:00]} 68. Nb6 {[%emt 0:01:17]} Bb3 {[%emt 0:00:00]} 69. Nc4 {[%emt 0:00:29]} Bxa4 {[%emt 0:00:00]} 70. Nxa5+ {[%emt 0:00:04]} Kc8 {[%emt 0:00:00]} 71. b6 {[%emt 0:01:04]} Bc2 {[%emt 0:00:10]} 72. Nc4 {[%emt 0:01:13]} Kb8 {[%emt 0:00:37]} 73. Nd6 {[%emt 0:01:13]} Ba4 {[%emt 0:01:34]} 74. Nc4 {[%emt 0:01:42]} Bc2 {[%emt 0:00:15]} 75. Na5 {[%emt 0:00:17]} Be4 {[%emt 0:01:08]} 76. Kd4 {[%emt 0:02:25]} Bc2 {[%emt 0:00:36]} 77. Kd5 {[%emt 0:00:17]} Bf5 {[%emt 0:00:52]} 78. Nc4 {[%emt 0:02:13]} Bc2 {[%emt 0:00:15]} 79. Nd6 {[%emt 0:01:40]} Bd3 {[%emt 0:00:18]} 80. Kc6 {[%emt 0:00:12]} Bc2 {[%emt 0:00:28]} 81. b7 {[%emt 0:00:25]} Ba4+ {[%emt 0:00:34]} 82. Kb6 {[%emt 0:00:33]} Bc2 {[%emt 0:00:37]} 83. Nc8 {[%emt 0:00:33]} Be4 {[%emt 0:01:01]} 84. Ne7 {[%emt 0:00:23]} Bxb7 {[%emt 0:00:10]} 85. Nxg6 {[%emt 0:00:04]} Be4 {[%emt 0:00:14]} 86. Ne7 {[%emt 0:00:06]} Bb1 {[%emt 0:00:17]} 87. Kc6 {[%emt 0:00:22]} Ba2 {[%emt 0:00:09]} 88. Nd5 {[%emt 0:00:27]} Kc8 {[%emt 0:00:13]} 89. h4 {[%emt 0:00:54]} Kd8 {[%emt 0:00:24]} 90. Kd6 {[%emt 0:00:19]} Bc4 {[%emt 0:00:41]} 91. f5 {[%emt 0:00:44]} Be2 {[%emt 0:00:20]} 92. Nf4 {[%emt 0:00:33]} Bg4 {[%emt 0:00:05]} 93. Ke6 {[%emt 0:00:13]} Ke8 {[%emt 0:00:06]} 94. Kf6 {[%emt 0:00:05]} Kf8 {[%emt 0:00:29]} 95. Kg6 {[%emt 0:00:21]} 1-0

[Event "44th Chess Olympiad Women 2022"]
[Site "Chennai"]
[Date "2022.08.09"]
[Round "11.36"]
[White "Granados Diaz, Maria Esther"]
[Black "Foudzi, Siti Zulaikha"]
[Result "1-0"]
[ECO "B06"]
[WhiteElo "1888"]
[BlackElo "2188"]
[Annotator "RC"]
[PlyCount "117"]
[EventDate "2022.07.29"]
[EventType "team-tourn"]
[EventCountry "IND"]
[SourceTitle "playchess.com"]
[Source "ChessBase"]
[SourceQuality "1"]
[WhiteTeam "Nicaragua"]
[BlackTeam "Malaysia"]
[WhiteTeamCountry "NCA"]
[BlackTeamCountry "MAS"]
[TimeControl "40/5400+30:1800+30"]

1. e4 {[%emt 0:00:02]} g6 {[%emt 0:00:05]} 2. d4 {[%emt 0:00:51]} Bg7 {[%emt 0:00:05]} 3. Nc3 {[%emt 0:00:05]} d6 {[%emt 0:00:21]} 4. Be3 {[%emt 0:00:07]} e6 {[%emt 0:00:16]} 5. Qd2 {[%emt 0:00:10]} h6 {[%emt 0:00:05]} 6. Be2 {[%emt 0:00:19]} Ne7 {[%emt 0:00:07]} 7. f4 {[%emt 0:00:35]} b6 {[%emt 0:02:41]} 8. Nf3 {[%emt 0:00:19]} Bb7 {[%emt 0:00:26]} 9. O-O-O {[%emt 0:00:28]} Nd7 {[%emt 0:01:53]} 10. d5 {[%emt 0:02:06]} exd5 {[%emt 0:09:03]} 11. Nxd5 {[%emt 0:00:34]} Nxd5 {[%emt 0:08:36]} 12. exd5 {[%emt 0:00:06]} Nf6 {[%emt 0:00:10]} 13. Bb5+ {[%emt 0:00:22]} Kf8 {[%emt 0:00:06]} 14. Bc4 {[%emt 0:08:30]} b5 {[%emt 0:03:43]} 15. Bb3 {[%emt 0:01:27]} a5 {[%emt 0:00:17]} 16. a3 {[%emt 0:00:10]} Qd7 {[%emt 0:06:19]} 17. Bd4 {[%emt 0:04:06]} Kg8 {[%emt 0:02:43]} 18. h3 {[%emt 0:04:19]} Kh7 {[%emt 0:03:24]} 19. g4 {[%emt 0:00:13]} Ne4 {[%emt 0:02:53]} 20. Qg2 {[%emt 0:00:31]} a4 {[%emt 0:04:08]} 21. Ba2 {[%emt 0:02:42]} b4 {[%emt 0:01:22]} 22. Ng5+ {[%emt 0:10:25]} Nxg5 {[%emt 0:01:47]} 23. fxg5 {[%emt 0:00:07]} Bxd4 {[%emt 0:06:28]} 24. Rxd4 {[%emt 0:00:07]} b3 {[%emt 0:04:24]} 25. cxb3 {[%emt 0:02:25]} axb3 {[%emt 0:08:25]} 26. Bxb3 {[%emt 0:00:30]} hxg5 {[%emt 0:00:31]} 27. Qd2 {[%emt 0:04:53]} c5 {[%emt 0:03:50]} 28. Rd3 {[%emt 0:02:37]} Qe7 {[%emt 0:02:17]} 29. Rf3 {[%emt 0:04:50]} Ba6 {[%emt 0:04:17]} 30. Re1 {[%emt 0:01:42]} Qb7 {[%emt 0:01:49]} 31. Qxg5 {[%emt 0:00:46]} Rhe8 {[%emt 0:00:24]} 32. Rfe3 {[%emt 0:02:40]} Rxe3 {[%emt 0:02:25]} 33. Rxe3 {[%emt 0:00:07]} Kg7 {[%emt 0:04:16]} 34. Bc2 {[%emt 0:07:37]} Ra7 {[%emt 0:02:51]} 35. h4 {[%emt 0:07:54]} Bc4 {[%emt 0:00:58]} 36. h5 {[%emt 0:00:41]} Qxd5 {[%emt 0:00:23]} 37. h6+ {[%emt 0:02:41]} Kh7 {[%emt 0:00:09]} 38. Qf6 {[%emt 0:00:55]} Qd4 {[%emt 0:01:02]} 39. Qf3 {[%emt 0:06:04]} Rb7 {[%emt 0:03:24]} 40. Bxg6+ {[%emt 0:14:54]} Kxh6 {[%emt 0:02:55]} 41. Qh3+ {[%emt 0:33:48]} Kxg6 {[%emt 0:32:22]} 42. Qh5+ {[%emt 0:00:10]} Kg7 {[%emt 0:00:27]} 43. Qg5+ {[%emt 0:00:07]} Kf8 {[%emt 0:00:12]} 44. Qh6+ {[%emt 0:01:56]} Qg7 {[%emt 0:00:06]} 45. Re8+ {[%emt 0:00:06]} Kxe8 {[%emt 0:00:04]} 46. Qxg7 {[%emt 0:00:04]} Be6 {[%emt 0:00:55]} 47. g5 {[%emt 0:00:00]} Re7 {[%emt 0:00:00]} 48. a4 {[%emt 0:00:00]} Bf5 {[%emt 0:00:00]} 49. Qf6 {[%emt 0:00:00]} Be6 {[%emt 0:00:00]} 50. a5 {[%emt 0:00:00]} Ra7 {[%emt 0:00:00]} 51. g6 {[%emt 0:00:00]} Rxa5 {[%emt 0:00:00]} 52. b4 {[%emt 0:00:00]} cxb4 {[%emt 0:00:00]} 53. g7 {[%emt 0:00:00]} Rc5+ {[%emt 0:00:00]} 54. Kb2 {[%emt 0:00:00]} Rc8 {[%emt 0:00:00]} 55. g8=Q+ {[%emt 0:00:00]} Kd7 {[%emt 0:00:00]} 56. Qgg5 {[%emt 0:00:00]} b3 {[%emt 0:00:00]} 57. Qb5+ {[%emt 0:00:00]} Rc6 {[%emt 0:00:00]} 58. Qf3 {[%emt 0:00:00]} d5 {[%emt 0:00:00]} 59. Qc3 {[%emt 0:00:00]} 1-0

[Event "44th Chess Olympiad Women 2022"]
[Site "Chennai"]
[Date "2022.08.09"]
[Round "11.36"]
[White "Alvarez Gutierrez, Patricia"]
[Black "Azhar, Puteri Rifqah Fahada"]
[Result "1/2-1/2"]
[ECO "D60"]
[WhiteElo "1715"]
[BlackElo "1940"]
[Annotator "TA"]
[PlyCount "60"]
[EventDate "2022.07.29"]
[EventType "team-tourn"]
[EventCountry "IND"]
[SourceTitle "playchess.com"]
[Source "ChessBase"]
[SourceQuality "1"]
[WhiteTeam "Nicaragua"]
[BlackTeam "Malaysia"]
[WhiteTeamCountry "NCA"]
[BlackTeamCountry "MAS"]
[TimeControl "40/5400+30:1800+30"]

{[%evp 18,60,42,37,37,37,38,42,45,28,39,63,63,54,143,67,143,28,70,10,22,23,26,35,28,6,19,23,57,60,68,41,60,51,52,22,56,24,45,33,47,41,64,66,77]} 1. d4 {[%emt 0:01:07]} d5 {[%emt 0:00:27]} 2. c4 {[%emt 0:00:07]} c6 {[%emt 0:00:08]} 3. Nc3 {[%emt 0:00:11]} Nf6 {[%emt 0:00:15]} 4. Nf3 {[%emt 0:00:13]} e6 {[%emt 0:00:40]} 5. Bg5 {[%emt 0:00:18]} Be7 {[%emt 0:01:52]} 6. e3 {[%emt 0:00:37]} Nbd7 {[%emt 0:00:24]} 7. Bd3 {[%emt 0:00:29]} O-O {[%emt 0:02:50]} 8. O-O {[%emt 0:01:16]} Re8 {[%emt 0:01:06]} 9. Qc2 {[%emt 0:03:57]} h6 {[%emt 0:09:28]} 10. Bh4 {[%emt 0:00:26]} Nh5 {[%emt 0:04:49] D60: Queen's Gambit Declined: Classical: Unusual White 7th moves.} 11. Bxe7 {[%emt 0:04:09]} Qxe7 {[%emt 0:00:08]} 12. Ne5 {[%emt 0:00:59] [#]} Nhf6 $146 {[%emt 0:00:56] Prevents Bh7+.} ({Predecessor:} 12... dxc4 13. Be2 Nhf6 14. Bxc4 Nxe5 15. dxe5 Nd7 16. Qe4 Nc5 17. Qf4 Qg5 18. Qxg5 hxg5 {0-1 (78) Illgen,A (2022)-Schulz,B Mecklenburg VP 2011}) 13. f4 {[%emt 0:01:14]} dxc4 {[%emt 0:04:52]} 14. Bxc4 {[%emt 0:08:38]} Nb6 {[%emt 0:00:27]} 15. Bd3 {[%emt 0:01:08] White is much more active. The black rooks are badly placed.} Bd7 {[%emt 0:05:25]} ({Better is} 15... Nbd5 $14) 16. Rac1 {[%emt 0:01:20]} (16. g4 $1 $16) 16... Rac8 {[%emt 0:03:36] [#]} (16... c5 $14) 17. Ne4 {[%emt 0:02:40]} ({White has to play} 17. g4 $1 $16 {[%cal Rg4g5]}) 17... Nbd5 {[%emt 0:06:04] [#] Hoping for ...Nxe4.} 18. Qe2 {[%emt 0:04:52]} ({White should play} 18. Ng5 $1 $14 hxg5 19. fxg5) 18... Nxe4 $11 {[%emt 0:03:51]} 19. Bxe4 {[%emt 0:04:53]} Nf6 {[%emt 0:04:53]} 20. Bf3 {[%emt 0:02:33]} Red8 {[%emt 0:03:48]} 21. Rc5 {[%emt 0:03:17]} Be8 {[%emt 0:07:27]} 22. Rfc1 {[%emt 0:01:32]} Nd7 {[%emt 0:04:38]} 23. Nxd7 {[%emt 0:03:32]} Bxd7 {[%emt 0:00:52]} 24. R5c3 {[%emt 0:03:04]} Rc7 {[%emt 0:01:41]} 25. Be4 {[%emt 0:11:43][%cal Bf3e4,Be4b1,Bb1d3][%mdl 32]} Rdc8 {[%emt 0:01:52]} 26. Bb1 {[%emt 0:00:30]} g6 {[%emt 0:02:46]} 27. Bd3 {[%emt 0:03:58]} Kg7 {[%emt 0:01:14]} 28. Qc2 {[%emt 0:00:40] White is slightly better.} Be8 {[%emt 0:02:27]} 29. a3 {[%emt 0:01:21]} Bd7 {[%emt 0:06:39]} 30. Be4 {[%emt 0:02:18]} Rh8 {[%emt 0:02:29] Weighted Error Value: White=0.27 (precise) /Black=0.19 (very precise)} 1/2-1/2